bitfinex/quotes_BTCUSD_20251113
["timestamp","ask_amount","ask_price","bid_price","bid_amount"]
[1763048495942,0.19634792,101860.0,101850.0,0.0458]
[1763048496148,0.19634792,101860.0,101850.0,0.0004]
[1763048496352,0.26584792,101860.0,101850.0,0.0004]
[1763048496766,0.8955507,101860.0,101850.0,0.0004]
[1763048497137,0.26584792,101860.0,101850.0,0.0004]
[1763048497343,0.27477657,101860.0,101850.0,0.0014]
[1763048497961,0.27477657,101860.0,101850.0,0.0004]
[1763048498170,0.27777657,101860.0,101850.0,0.0004]
[1763048498365,0.27777945,101860.0,101850.0,0.0004]
[1763048499863,0.90748223,101860.0,101850.0,0.0004]
[1763048500083,0.90748223,101860.0,101840.0,1e-08]
[1763048500084,0.6007972,101850.0,101840.0,1e-08]
[1763048500318,3.28285025,101850.0,101840.0,1e-08]
[1763048500563,3.36638633,101850.0,101840.0,1e-08]
[1763048500761,0.19644435,101810.0,101800.0,0.0004]
[1763048500963,0.19642506,101820.0,101810.0,0.0454]
[1763048501192,0.19642506,101820.0,101810.0,0.24184435]
[1763048501497,0.30433968,101830.0,101810.0,0.24184435]
[1763048501623,0.31327205,101830.0,101810.0,0.24184435]
[1763048502024,0.19720506,101820.0,101800.0,0.3035768]
[1763048502233,0.19644435,101810.0,101800.0,0.3035768]
[1763048502448,0.19920506,101820.0,101810.0,0.24184435]
[1763048502701,0.19842506,101820.0,101810.0,0.24184435]
[1763048502897,0.19842506,101820.0,101800.0,0.3694768]
[1763048502898,0.19644435,101810.0,101800.0,0.0004]
[1763048503054,0.22792435,101810.0,101800.0,0.0004]
[1763048503269,0.22792435,101810.0,101800.0,0.19686365]
[1763048503680,0.03288,101810.0,101800.0,0.0004]
[1763048503861,0.22792435,101810.0,101800.0,0.19686365]
[1763048505040,0.22792435,101810.0,101800.0,0.0004]
[1763048505252,0.22870435,101810.0,101800.0,0.0004]
[1763048505461,0.22970435,101810.0,101800.0,0.0004]
[1763048505909,0.90813713,101810.0,101800.0,0.0004]
[1763048506171,0.93707031,101810.0,101800.0,0.0004]
[1763048506604,0.95493884,101810.0,101800.0,0.0004]
[1763048506985,1.27793884,101810.0,101800.0,0.0004]
[1763048507204,1.32135758,101810.0,101800.0,0.0004]
[1763048507377,3.32135758,101810.0,101800.0,0.0004]
[1763048507992,0.64823606,101810.0,101800.0,0.0004]
[1763048508234,1.27793884,101810.0,101800.0,0.0004]
[1763048508441,1.35189418,101810.0,101800.0,0.0004]
[1763048508670,1.39431292,101810.0,101800.0,0.0004]
[1763048509050,1.39731292,101810.0,101800.0,0.0004]
[1763048509655,0.7241914,101810.0,101800.0,0.0004]
[1763048509836,0.60150606,101810.0,101800.0,0.19686365]
[1763048510043,0.58150606,101810.0,101800.0,0.0004]
[1763048510247,0.06128171,101810.0,101800.0,0.19686365]
[1763048510449,0.05234853,101810.0,101800.0,0.35965365]
[1763048510788,0.01786853,101810.0,101800.0,0.35965365]
[1763048510991,0.01786853,101810.0,101800.0,0.36235276]
[1763048511233,0.02186853,101810.0,101800.0,0.36235276]
[1763048511428,0.02186853,101810.0,101800.0,0.99205554]
[1763048511834,0.02186853,101810.0,101800.0,1.03547428]
[1763048511835,0.01986853,101810.0,101800.0,1.03547428]
[1763048512061,0.01986853,101810.0,101800.0,0.36235276]
[1763048512265,0.02086853,101810.0,101800.0,0.99205554]
[1763048512422,0.01886853,101810.0,101800.0,0.99205554]
[1763048512650,0.01786853,101810.0,101800.0,1.03547428]
[1763048512853,0.01786853,101810.0,101800.0,0.36235276]
[1763048513026,0.01786853,101810.0,101800.0,0.26646276]
[1763048513424,0.01786853,101810.0,101800.0,0.36335276]
[1763048513943,0.21431288,101810.0,101800.0,0.36335276]
[1763048514125,0.22517435,101810.0,101800.0,0.00409911]
[1763048514684,0.22517435,101810.0,101800.0,0.20056276]
[1763048514914,0.22517435,101810.0,101800.0,0.00309911]
[1763048515114,0.22517435,101810.0,101800.0,0.19956276]
[1763048515234,0.22517435,101810.0,101800.0,0.20056276]
[1763048515453,0.22517435,101810.0,101800.0,0.00409911]
[1763048515668,0.22517435,101810.0,101800.0,0.26646276]
[1763048516261,0.19642572,101820.0,101810.0,0.19644435]
[1763048516474,0.19642572,101820.0,101810.0,0.0454]
[1763048517106,0.19644435,101810.0,101800.0,0.0014]
[1763048517265,0.19644435,101810.0,101800.0,0.19686365]
[1763048517469,0.19642572,101820.0,101800.0,0.35965365]
[1763048517679,0.03148,101830.0,101820.0,0.19642506]
[1763048518282,0.03148,101830.0,101820.0,0.26232506]
[1763048518478,0.51941709,101840.0,101830.0,0.19640577]
[1763048518687,0.51941709,101840.0,101830.0,0.24180577]
[1763048518688,0.5283339,101840.0,101830.0,0.24180577]
[1763048518933,0.5283339,101840.0,101830.0,0.0454]
[1763048519714,0.53815322,101840.0,101830.0,0.0454]
[1763048520122,0.19640577,101830.0,101820.0,0.04985]
[1763048520362,0.19642506,101820.0,101810.0,0.0454]
[1763048520563,0.19644435,101810.0,101800.0,0.19686365]
[1763048520966,0.22517435,101810.0,101800.0,0.19686365]
[1763048521302,0.22517435,101810.0,101800.0,0.0004]
[1763048521518,0.22566435,101810.0,101800.0,0.0004]
[1763048521773,0.22517435,101810.0,101800.0,0.19686365]
[1763048522000,0.19642506,101820.0,101800.0,0.36213365]
[1763048522214,0.20533644,101820.0,101810.0,0.24629435]
[1763048522442,0.19642506,101820.0,101810.0,0.24629435]
[1763048522649,0.19642506,101820.0,101810.0,0.24878045]
[1763048522885,0.27502506,101820.0,101810.0,0.0024861]
[1763048523122,0.20938506,101820.0,101810.0,0.19893045]
[1763048523330,0.01296,101830.0,101820.0,0.19642506]
[1763048523544,0.52923641,101840.0,101830.0,0.19640577]
[1763048523756,0.53815569,101840.0,101830.0,0.19640577]
[1763048523967,0.19642506,101820.0,101800.0,0.19686346]
[1763048524179,0.21221435,101810.0,101800.0,0.0004]
[1763048525089,0.21221435,101810.0,101800.0,0.19686365]
[1763048525279,0.21221435,101810.0,101800.0,0.0004]
[1763048525704,0.21221435,101810.0,101800.0,0.19786365]
[1763048525919,0.21221435,101810.0,101800.0,0.0014]
[1763048526120,0.03359682,101810.0,101800.0,0.25854365]
[1763048526367,0.01782682,101810.0,101800.0,0.85963129]
[1763048527470,0.21427117,101810.0,101800.0,0.25854365]
[1763048527691,0.21427117,101810.0,101800.0,0.0014]
[1763048527896,0.27954117,101810.0,101800.0,0.0014]
[1763048528112,0.30003117,101810.0,101800.0,0.0014]
[1763048528378,0.80236881,101810.0,101800.0,0.0014]
[1763048528594,0.85471675,101810.0,101800.0,0.0014]
[1763048529050,1.13429801,101810.0,101800.0,0.0014]
[1763048530150,1.13429801,101810.0,101800.0,0.0004]
[1763048530587,1.13629801,101810.0,101800.0,0.0004]
[1763048530801,1.13829801,101810.0,101800.0,0.00309911]
[1763048532379,0.63596037,101810.0,101800.0,0.00309911]
[1763048532615,0.63547037,101810.0,101800.0,0.00309911]
[1763048533246,0.24297037,101810.0,101800.0,0.19956276]
[1763048533669,0.23404117,101810.0,101800.0,0.19956276]
[1763048534150,0.23404117,101810.0,101800.0,0.26024276]
[1763048534151,0.03759682,101810.0,101800.0,0.26024276]
[1763048534360,0.02182682,101810.0,101800.0,0.35899276]
[1763048534566,0.01782682,101810.0,101800.0,0.35899276]
[1763048534773,0.01982682,101810.0,101800.0,0.8613304]
[1763048535000,0.02082682,101810.0,101800.0,0.8613304]
[1763048535232,0.003,101810.0,101800.0,0.8613304]
[1763048535471,0.002,101810.0,101800.0,0.8613304]
[1763048535653,0.20936627,101830.0,101820.0,0.19642506]
[1763048535855,0.01786596,101830.0,101820.0,0.25710506]
[1763048536167,0.01786596,101830.0,101820.0,0.35585506]
[1763048536370,0.21427173,101830.0,101820.0,0.25710506]
[1763048536591,0.01786596,101830.0,101820.0,0.25710506]
[1763048536824,0.01786596,101830.0,101820.0,0.35585506]
[1763048537055,0.21811556,101850.0,101840.0,0.19638648]
[1763048537931,0.22618188,101850.0,101840.0,0.25706648]
[1763048538150,0.01788468,101850.0,101840.0,0.35581648]
[1763048538589,0.02088468,101850.0,101840.0,0.35581648]
[1763048538837,0.01888468,101850.0,101840.0,0.35581648]
[1763048539496,0.21525622,101850.0,101830.0,0.29515571]
[1763048539696,0.01888902,101850.0,101840.0,0.35581648]
[1763048539879,0.001,101850.0,101840.0,0.35581648]
[1763048540109,0.003,101850.0,101840.0,0.40197648]
[1763048540488,0.21425123,101850.0,101840.0,0.20559]
[1763048540699,0.01788403,101850.0,101840.0,0.40197648]
[1763048540903,0.20616531,101860.0,101850.0,0.1963672]
[1763048541118,0.01788492,101860.0,101850.0,0.4052072]
[1763048541573,0.01788492,101860.0,101850.0,0.90754484]
[1763048541822,0.22780878,101870.0,101860.0,0.19634792]
[1763048542038,0.01788182,101870.0,101860.0,0.25702792]
[1763048542239,0.01788182,101870.0,101860.0,0.35577792]
[1763048542456,0.22187494,101890.0,101880.0,0.19630938]
[1763048542654,0.23974784,101890.0,101880.0,0.19630938]
[1763048542909,0.22397751,101890.0,101880.0,0.25698938]
[1763048543165,0.23974751,101890.0,101880.0,0.25698938]
[1763048543416,0.0336429,101890.0,101880.0,0.25698938]
[1763048543621,0.0178729,101890.0,101880.0,0.35573938]
[1763048543799,0.19640177,101900.0,101890.0,0.19629011]
[1763048544006,0.01785878,101900.0,101890.0,0.24570011]
[1763048544288,0.01785878,101900.0,101890.0,0.90746775]
[1763048544445,0.19627085,101900.0,101890.0,0.40513011]
[1763048544642,0.19627085,101900.0,101890.0,0.04941]
[1763048545224,0.19827085,101900.0,101890.0,0.04941]
[1763048545430,0.19827085,101900.0,101870.0,0.85662541]
[1763048545431,0.19630938,101880.0,101870.0,0.2457338]
[1763048545630,0.19630938,101880.0,101870.0,0.04941]
[1763048545898,0.19630938,101880.0,101870.0,0.24573865]
[1763048546077,0.21207723,101890.0,101880.0,0.19630938]
[1763048546213,0.20808439,101900.0,101880.0,0.35573938]
[1763048546420,0.20608439,101900.0,101890.0,0.24570011]
[1763048546684,0.20708439,101900.0,101890.0,0.24570011]
[1763048546914,0.20708439,101900.0,101890.0,0.04941]
[1763048547203,0.22391097,101900.0,101890.0,0.04941]
[1763048547421,0.22540097,101900.0,101880.0,0.29505938]
[1763048547618,0.19629011,101890.0,101880.0,0.29505938]
[1763048548011,0.19629011,101890.0,101880.0,0.35573938]
[1763048548238,0.21206011,101890.0,101870.0,0.25555508]
[1763048548374,0.19630938,101880.0,101870.0,0.24573865]
[1763048548586,0.19630938,101880.0,101870.0,0.04941]
[1763048548899,0.02,101890.0,101870.0,0.4045878]
[1763048549267,0.001,101900.0,101890.0,0.51929011]
[1763048549512,0.23808338,101930.0,101910.0,0.19623573]
[1763048549730,0.19626279,101910.0,101890.0,0.40512973]
[1763048549948,0.19626279,101910.0,101890.0,0.24570011]
[1763048549949,0.20923085,101900.0,101890.0,0.24570011]
[1763048550153,0.20972085,101900.0,101880.0,0.20612406]
[1763048550351,0.19629011,101890.0,101880.0,0.20612406]
[1763048550797,0.19629011,101890.0,101880.0,0.19630938]
[1763048551003,0.20923085,101900.0,101890.0,0.19629011]
[1763048551212,0.01296,101900.0,101890.0,0.19629011]
[1763048551389,0.01296,101900.0,101890.0,0.24332011]
[1763048552027,0.01296,101900.0,101890.0,0.24381694]
[1763048552232,0.20923085,101900.0,101890.0,0.00049683]
[1763048552448,0.25874085,101900.0,101890.0,0.00049683]
[1763048552899,0.29652963,101900.0,101890.0,0.00049683]
[1763048553155,0.29752963,101900.0,101890.0,0.00049683]
[1763048553376,0.22899963,101900.0,101890.0,0.19678694]
[1763048554021,0.22899963,101900.0,101890.0,0.00049683]
[1763048554222,0.22899963,101900.0,101890.0,0.19678694]
[1763048554463,0.27752963,101900.0,101890.0,0.00049683]
[1763048554669,1.12286727,101900.0,101890.0,0.00049683]
[1763048554896,3.12286727,101900.0,101890.0,0.00049683]
[1763048555105,3.12286727,101900.0,101850.0,0.1963672]
[1763048555106,0.19634792,101860.0,101850.0,0.1963672]
[1763048555233,0.19683792,101860.0,101840.0,0.25229412]
[1763048555438,0.19683792,101860.0,101850.0,0.1963672]
[1763048555847,0.19683792,101860.0,101840.0,0.25229412]
[1763048556105,0.19683792,101860.0,101850.0,0.1963672]
[1763048556832,0.19783792,101860.0,101840.0,0.25229412]
[1763048557068,0.24685792,101860.0,101850.0,0.1963672]
[1763048557619,0.24685792,101860.0,101840.0,0.25229412]
[1763048557815,0.01193,101850.0,101840.0,0.25229412]
[1763048559846,0.01193,101850.0,101840.0,0.31330412]
[1763048560056,0.2577972,101850.0,101840.0,0.001]
[1763048560263,0.29609268,101850.0,101840.0,0.001]
[1763048560474,0.27609268,101850.0,101840.0,0.001]
[1763048560685,0.79843032,101850.0,101840.0,0.001]
[1763048561556,0.29609268,101850.0,101840.0,0.001]
[1763048562213,0.29709268,101850.0,101840.0,0.001]
[1763048562429,0.29709268,101850.0,101840.0,0.0022428]
[1763048562670,0.29709268,101850.0,101840.0,0.0012428]
[1763048562881,0.79943032,101850.0,101840.0,0.0012428]
[1763048563090,0.29709268,101850.0,101840.0,0.0012428]
[1763048563772,0.29660268,101850.0,101840.0,0.0012428]
[1763048564405,0.29709268,101850.0,101840.0,0.0012428]
[1763048564685,0.29709268,101850.0,101840.0,0.19762928]
[1763048565553,0.29715719,101850.0,101840.0,0.19762928]
[1763048565759,0.03079999,101850.0,101840.0,0.19762928]
[1763048566005,0.03079999,101850.0,101840.0,0.25763928]
[1763048566248,0.03079999,101850.0,101840.0,0.35736928]
[1763048566473,0.01886999,101850.0,101840.0,0.35736928]
[1763048567179,0.01886999,101850.0,101840.0,0.25763928]
[1763048567591,0.01886999,101850.0,101840.0,0.35736928]
[1763048570363,0.22716719,101850.0,101840.0,0.19762928]
[1763048570602,0.22716719,101850.0,101840.0,0.25763928]
[1763048571221,0.22716719,101850.0,101840.0,0.0012428]
[1763048571424,0.27716328,101850.0,101840.0,0.0012428]
[1763048571633,0.79950092,101850.0,101840.0,0.0012428]
[1763048575082,0.92847743,101850.0,101840.0,0.0012428]
[1763048575788,1.25147743,101850.0,101840.0,0.0012428]
[1763048576196,1.26040901,101850.0,101840.0,0.0012428]
[1763048576402,1.26140901,101850.0,101840.0,0.0012428]
[1763048577036,0.43323766,101850.0,101840.0,0.0012428]
[1763048577248,0.22817328,101850.0,101840.0,0.19762928]
[1763048577439,0.22866328,101850.0,101840.0,0.0012428]
[1763048577815,0.23066328,101850.0,101840.0,0.0012428]
[1763048578027,0.22866328,101850.0,101840.0,0.19762928]
[1763048578228,0.22666328,101850.0,101840.0,0.0012428]
[1763048578544,0.22966328,101850.0,101840.0,0.19762928]
[1763048579184,0.03329608,101850.0,101840.0,0.19762928]
[1763048579385,0.03280608,101850.0,101840.0,0.35736928]
[1763048579596,0.02087608,101850.0,101840.0,0.35736928]
[1763048580473,0.02087608,101850.0,101840.0,0.98868343]
[1763048580694,0.003,101850.0,101840.0,0.98868343]
[1763048581122,0.2112972,101850.0,101840.0,0.25763928]
[1763048581333,0.27568415,101850.0,101840.0,0.0012428]
[1763048581757,0.27668415,101850.0,101840.0,0.0012428]
[1763048581971,0.27568415,101850.0,101840.0,0.0012428]
[1763048582205,0.27617415,101850.0,101840.0,0.0012428]
[1763048582444,0.9274883,101850.0,101840.0,0.0012428]
[1763048582627,0.9274883,101850.0,101840.0,0.0022428]
[1763048582628,1.25944364,101850.0,101840.0,0.0022428]
[1763048583278,1.25944364,101850.0,101840.0,0.0012428]
[1763048583279,0.62912949,101850.0,101840.0,0.0012428]
[1763048583418,1.26044364,101850.0,101840.0,0.0012428]
[1763048584524,0.62812949,101850.0,101840.0,0.0012428]
[1763048584725,1.25944364,101850.0,101840.0,0.0012428]
[1763048584940,1.26144364,101850.0,101840.0,0.0012428]
[1763048585392,1.26344364,101850.0,101840.0,0.0012428]
[1763048586829,3.30686238,101850.0,101840.0,0.0003228]
[1763048587173,3.30686238,101850.0,101840.0,1e-08]
[1763048587415,3.5752295,101850.0,101840.0,1e-08]
[1763048587629,3.3475367,101850.0,101840.0,1e-08]
[1763048588199,3.3455367,101850.0,101840.0,1e-08]
[1763048588405,0.19644435,101810.0,101800.0,0.0004]
[1763048588606,0.93754737,101810.0,101800.0,0.0004]
[1763048588828,0.30623322,101810.0,101800.0,0.0004]
[1763048589036,0.93754737,101810.0,101800.0,0.0004]
[1763048589238,0.9471969,101810.0,101800.0,0.0004]
[1763048589802,3.31361564,101810.0,101800.0,1e-08]
[1763048590042,3.34130844,101810.0,101800.0,1e-08]
[1763048590246,3.31361564,101810.0,101800.0,1e-08]
[1763048590449,3.32361563,101810.0,101800.0,1e-08]
[1763048590886,3.52361563,101810.0,101800.0,1e-08]
[1763048591092,3.53361562,101810.0,101800.0,1e-08]
[1763048591299,3.53461562,101810.0,101800.0,1e-08]
[1763048591675,3.53361562,101810.0,101800.0,1e-08]
[1763048591909,3.60858738,101810.0,101800.0,1e-08]
[1763048592134,3.61658738,101810.0,101800.0,1e-08]
[1763048593402,3.61651996,101810.0,101800.0,1e-08]
[1763048594039,3.41651996,101810.0,101800.0,1e-08]
[1763048594445,3.41651996,101810.0,101800.0,0.00095858]
[1763048595255,3.40651997,101810.0,101800.0,0.00095858]
[1763048595450,3.41651996,101810.0,101800.0,0.00095858]
[1763048595952,3.39651998,101810.0,101800.0,0.00095858]
[1763048596778,1.39651998,101810.0,101800.0,0.00095858]
[1763048596981,0.3141658,101810.0,101800.0,0.00095858]
[1763048597237,0.94547995,101810.0,101800.0,0.00095858]
[1763048597626,1.26847995,101810.0,101800.0,0.00095858]
[1763048598224,1.26847995,101810.0,101800.0,0.19742223]
[1763048598225,0.3122458,101810.0,101800.0,0.19742223]
[1763048598430,0.28331865,101810.0,101800.0,0.19742223]
[1763048598632,0.9365628,101810.0,101800.0,0.00095858]
[1763048599113,0.30475865,101810.0,101800.0,0.00095858]
[1763048599355,0.0348143,101810.0,101800.0,0.19742223]
[1763048599606,0.22725865,101810.0,101800.0,0.19742223]
[1763048599816,0.22925865,101810.0,101800.0,0.26211223]
[1763048600039,0.0328143,101810.0,101800.0,0.26211223]
[1763048600271,0.0328143,101810.0,101800.0,0.35719223]
[1763048600272,0.0198543,101810.0,101800.0,0.35719223]
[1763048600482,0.0198543,101810.0,101800.0,0.98850638]
[1763048600928,0.0228543,101810.0,101800.0,0.98850638]
[1763048601373,0.21629865,101810.0,101800.0,0.00095858]
[1763048601593,0.21529865,101810.0,101800.0,0.00095858]
[1763048601827,0.21529865,101810.0,101800.0,0.19742223]
[1763048602072,0.0178543,101810.0,101800.0,0.35719223]
[1763048602300,0.0188543,101810.0,101800.0,0.35719223]
[1763048603229,0.0188543,101810.0,101800.0,0.26211223]
[1763048603487,0.0188543,101810.0,101800.0,0.35719223]
[1763048605132,0.0188543,101810.0,101800.0,0.98850638]
[1763048605551,0.001,101810.0,101800.0,0.98850638]
[1763048605704,0.001,101810.0,101800.0,0.35719223]
[1763048606043,0.01889173,101810.0,101800.0,0.35719223]
[1763048606249,0.001,101810.0,101800.0,0.35719223]
[1763048606875,0.19744435,101810.0,101800.0,0.06564858]
[1763048607067,0.89664318,101810.0,101800.0,0.00095858]
[1763048607298,0.91664318,101810.0,101800.0,0.00095858]
[1763048607631,0.28532903,101810.0,101800.0,0.00095858]
[1763048608484,0.21533903,101810.0,101800.0,0.00095858]
[1763048609074,0.26434903,101810.0,101800.0,0.00095858]
[1763048609993,0.21533903,101810.0,101800.0,0.26402223]
[1763048610403,0.21533903,101810.0,101800.0,0.19742223]
[1763048610636,0.21533903,101810.0,101800.0,0.00095858]
[1763048610803,0.21533903,101810.0,101800.0,0.19742223]
[1763048611453,0.01889468,101810.0,101800.0,0.19742223]
[1763048611642,0.01889468,101810.0,101800.0,0.26402223]
[1763048611846,0.21533903,101810.0,101800.0,0.19742223]
[1763048612683,0.01889468,101810.0,101800.0,0.19742223]
[1763048612841,0.19642533,101820.0,101810.0,0.19644344]
[1763048613227,0.59248557,101830.0,101810.0,0.19644344]
[1763048613429,0.60230585,101830.0,101820.0,0.19642506]
[1763048613631,0.53280585,101830.0,101810.0,0.34283344]
[1763048613833,0.20980585,101830.0,101810.0,0.34283344]
[1763048614054,0.19791506,101820.0,101800.0,0.30524684]
[1763048614448,0.19644435,101810.0,101800.0,0.29542366]
[1763048614694,0.00049,101820.0,101810.0,0.24387435]
[1763048614894,0.28130585,101830.0,101820.0,0.19642506]
[1763048615324,0.19642506,101820.0,101810.0,0.19644435]
[1763048615521,0.19691506,101820.0,101810.0,0.19644435]
[1763048615948,0.00049,101820.0,101810.0,0.19644435]
[1763048616099,0.19691506,101820.0,101810.0,0.19644435]
[1763048616301,0.00049,101820.0,101810.0,0.19644435]
[1763048616481,0.19691506,101820.0,101800.0,0.30524596]
[1763048616688,0.19693435,101810.0,101800.0,0.19646366]
[1763048616961,0.19693435,101810.0,101800.0,1e-08]
[1763048617347,0.19693435,101810.0,101800.0,0.19646366]
[1763048617551,0.19693435,101810.0,101800.0,1e-08]
[1763048617757,0.26594435,101810.0,101800.0,1e-08]
[1763048617952,0.8972585,101810.0,101800.0,1e-08]
[1763048618558,0.26694435,101810.0,101800.0,1e-08]
[1763048618787,0.21793435,101810.0,101800.0,0.19646366]
[1763048618994,0.26694435,101810.0,101800.0,0.00095858]
[1763048619584,0.26694435,101810.0,101800.0,0.36298223]
[1763048619585,0.001,101810.0,101800.0,0.36298223]
[1763048619798,0.19744435,101810.0,101800.0,0.00095858]
[1763048620005,0.24743435,101810.0,101800.0,0.00095858]
[1763048620207,0.26743435,101810.0,101800.0,0.00095858]
[1763048621674,0.26694435,101810.0,101800.0,0.19742223]
[1763048621885,0.26694435,101810.0,101800.0,0.00095858]
[1763048622850,0.26694435,101810.0,101800.0,0.19742223]
[1763048623649,0.001,101810.0,101800.0,0.36298223]
[1763048624277,0.19744435,101810.0,101800.0,0.36298223]
[1763048624491,0.001,101810.0,101800.0,0.26402223]
[1763048624702,0.19744435,101810.0,101800.0,0.19742223]
[1763048625283,0.2154084,101810.0,101800.0,0.00095858]
[1763048625516,0.2154084,101810.0,101800.0,0.19742223]
[1763048625720,0.001,101810.0,101800.0,0.19742223]
[1763048625932,0.001,101810.0,101800.0,0.26402223]
[1763048626135,0.001,101810.0,101800.0,0.36298223]
[1763048626340,0.01896631,101810.0,101800.0,0.36298223]
[1763048626541,0.01896631,101810.0,101800.0,0.26402223]
[1763048626762,0.01896631,101810.0,101800.0,0.36298223]
[1763048626964,0.001,101810.0,101800.0,0.36298223]
[1763048627610,0.19744435,101810.0,101800.0,0.26402223]
[1763048627753,0.26491638,101810.0,101800.0,0.00095858]
[1763048628718,0.28491638,101810.0,101800.0,0.00095858]
[1763048628856,0.28540638,101810.0,101800.0,0.00095858]
[1763048629477,0.28540638,101810.0,101800.0,0.19742223]
[1763048629478,0.28491638,101810.0,101800.0,0.19742223]
[1763048629679,0.26491638,101810.0,101800.0,0.00095858]
[1763048630569,0.26540638,101810.0,101800.0,0.00095858]
[1763048630773,0.91672575,101810.0,101800.0,0.00095858]
[1763048631218,1.24871369,101810.0,101800.0,0.00095858]
[1763048631784,1.24771369,101810.0,101800.0,0.00095858]
[1763048632202,1.24971369,101810.0,101800.0,0.00095858]
[1763048632407,1.32282523,101810.0,101800.0,0.00095858]
[1763048632629,3.32282523,101810.0,101800.0,0.00095858]
[1763048633278,3.29513243,101810.0,101800.0,0.00095858]
[1763048633488,3.25171369,101810.0,101800.0,0.00095858]
[1763048633692,3.29513243,101810.0,101800.0,0.00095858]
[1763048634526,1.29513243,101810.0,101800.0,0.00095858]
[1763048636050,3.36990533,101810.0,101800.0,0.00095858]
[1763048637038,3.24125607,101810.0,101800.0,0.00095858]
[1763048637825,3.26894887,101810.0,101800.0,0.00095858]
[1763048638027,3.24125607,101810.0,101800.0,0.00095858]
[1763048638233,3.27077536,101810.0,101800.0,0.00095858]
[1763048639576,3.27076111,101810.0,101800.0,0.00095858]
[1763048640302,3.27076111,101810.0,101800.0,1e-08]
[1763048640547,3.3084539,101810.0,101800.0,1e-08]
[1763048640751,3.2807611,101810.0,101800.0,1e-08]
[1763048641168,3.26876111,101810.0,101800.0,1e-08]
[1763048641371,3.26676111,101810.0,101800.0,1e-08]
[1763048641580,3.2767611,101810.0,101800.0,1e-08]
[1763048641796,3.2807611,101810.0,101800.0,1e-08]
[1763048642035,3.2847611,101810.0,101800.0,1e-08]
[1763048642436,3.78742599,101810.0,101800.0,1e-08]
[1763048642648,3.79742598,101810.0,101800.0,1e-08]
[1763048642856,2.78209621,101810.0,101800.0,1e-08]
[1763048643062,3.29476109,101810.0,101800.0,1e-08]
[1763048643267,3.2847611,101810.0,101800.0,1e-08]
[1763048643711,3.29476109,101810.0,101800.0,1e-08]
[1763048644362,3.27476111,101810.0,101800.0,1e-08]
[1763048644602,1.23134237,101810.0,101800.0,1e-08]
[1763048644964,0.33090458,101810.0,101800.0,1e-08]
[1763048645165,0.80405018,101810.0,101800.0,1e-08]
[1763048645344,0.79507649,101810.0,101800.0,1e-08]
[1763048646084,0.79107649,101810.0,101800.0,1e-08]
[1763048646493,0.79407649,101810.0,101800.0,1e-08]
[1763048646738,1.11707649,101810.0,101800.0,1e-08]
[1763048646951,1.11307649,101810.0,101800.0,1e-08]
[1763048647091,0.6134116,101810.0,101800.0,1e-08]
[1763048647616,1.11607649,101810.0,101800.0,1e-08]
[1763048648004,0.5929216,101810.0,101800.0,1e-08]
[1763048648657,0.2699216,101810.0,101800.0,1e-08]
[1763048648804,0.2669216,101810.0,101800.0,1e-08]
[1763048649012,0.05117953,101810.0,101800.0,1e-08]
[1763048649296,0.25011388,101810.0,101800.0,1e-08]
[1763048649511,0.77277877,101810.0,101800.0,1e-08]
[1763048649712,0.22144435,101810.0,101800.0,1e-08]
[1763048649914,0.005,101810.0,101800.0,1e-08]
[1763048650136,0.24833435,101810.0,101800.0,1e-08]
[1763048650329,0.20144435,101810.0,101800.0,0.19646366]
[1763048650535,0.24786435,101810.0,101800.0,0.19646366]
[1763048650775,0.24786435,101810.0,101800.0,1e-08]
[1763048651202,0.24586435,101810.0,101800.0,1e-08]
[1763048651424,0.24386435,101810.0,101800.0,1e-08]
[1763048651883,0.24586435,101810.0,101800.0,1e-08]
[1763048652118,0.19944435,101810.0,101800.0,0.36116366]
[1763048652382,0.24433435,101810.0,101800.0,0.19646366]
[1763048652602,0.19744435,101810.0,101800.0,0.36116366]
[1763048652821,0.002,101810.0,101800.0,0.26171366]
[1763048653050,0.19844435,101810.0,101800.0,0.26171366]
[1763048653268,0.19891435,101810.0,101800.0,0.19646366]
[1763048653490,0.002,101810.0,101800.0,0.26171366]
[1763048653703,0.19844435,101810.0,101800.0,0.26171366]
[1763048654136,0.002,101810.0,101800.0,0.36116366]
[1763048655821,0.002,101810.0,101800.0,0.86382855]
[1763048656439,0.002,101810.0,101800.0,0.36116366]
[1763048656779,0.002,101810.0,101800.0,0.86382855]
[1763048656915,0.002,101810.0,101800.0,0.36116366]
[1763048657345,0.19844435,101810.0,101800.0,0.16470001]
[1763048657546,0.19844435,101810.0,101800.0,0.36116366]
[1763048657771,0.19691435,101810.0,101800.0,1e-08]
[1763048657981,0.00047,101810.0,101800.0,0.19746366]
[1763048658220,0.19644435,101810.0,101800.0,0.26271366]
[1763048658639,0.19644435,101810.0,101800.0,0.36216366]
[1763048658840,0.19644435,101810.0,101800.0,0.06525001]
[1763048659162,0.19644435,101810.0,101800.0,0.26171366]
[1763048659364,0.19644435,101810.0,101800.0,0.06525001]
[1763048659655,0.76599924,101810.0,101800.0,1e-08]
[1763048659950,1.08899924,101810.0,101800.0,1e-08]
[1763048660176,1.10691853,101810.0,101800.0,1e-08]
[1763048661076,3.65300216,101810.0,101800.0,1e-08]
[1763048661323,3.66196182,101810.0,101800.0,1e-08]
[1763048661560,3.69565462,101810.0,101800.0,1e-08]
[1763048661781,3.66796182,101810.0,101800.0,1e-08]
[1763048662046,3.73464351,101810.0,101800.0,1e-08]
[1763048662278,3.7797499,101810.0,101800.0,1e-08]
[1763048663179,3.78974989,101810.0,101800.0,1e-08]
[1763048663623,3.81039481,101810.0,101800.0,1e-08]
[1763048664439,4.01039481,101810.0,101800.0,1e-08]
[1763048666352,3.98270201,101810.0,101800.0,1e-08]
[1763048667014,4.01040046,101810.0,101800.0,1e-08]
[1763048667217,3.98270201,101810.0,101800.0,1e-08]
[1763048667682,3.98270201,101810.0,101740.0,0.0478]
[1763048667683,1.04222508,101750.0,101740.0,0.0004]
[1763048667896,3.19869279,101750.0,101740.0,0.0004]
[1763048668331,3.23802867,101750.0,101740.0,0.0004]
[1763048669170,3.24002867,101750.0,101740.0,0.0004]
[1763048669604,1.15727405,101750.0,101740.0,0.0004]
[1763048670234,1.21272611,101750.0,101740.0,0.0004]
[1763048670442,3.21272611,101750.0,101740.0,0.0004]
[1763048671135,1.16930737,101750.0,101740.0,0.0004]
[1763048671964,0.65660916,101750.0,101740.0,0.0004]
[1763048672182,1.15927405,101750.0,101740.0,0.0004]
[1763048672395,1.20269279,101750.0,101740.0,0.0004]
[1763048672609,3.20269279,101750.0,101740.0,0.0004]
[1763048672816,3.23223048,101750.0,101740.0,0.0004]
[1763048674016,3.23223048,101750.0,101740.0,1e-08]
[1763048674219,3.24223047,101750.0,101740.0,1e-08]
[1763048674426,3.24223047,101750.0,101730.0,1e-08]